bitfinex/quotes_ETHUSD_20251024
["timestamp","ask_amount","ask_price","bid_price","bid_amount"]
[1761310280996,0.1256,3974.2,3974.1,5.96129299]
[1761310281367,0.001,3974.6,3974.1,5.96129299]
[1761310281368,0.001,3974.6,3974.5,2.51603975]
[1761310281569,0.1266,3974.6,3974.5,5.96103975]
[1761310281932,0.001,3974.6,3974.1,0.8477697]
[1761310282128,0.001,3974.6,3974.4,2.51604705]
[1761310282426,0.001,3974.6,3974.5,3.445]
[1761310282870,0.001,3974.6,3974.5,3.444]
[1761310283061,0.3572,3974.6,3974.5,3.444]
[1761310283965,0.3572,3974.6,3973.0,0.66722825]
[1761310284160,0.3572,3974.6,3973.7,2.51652897]
[1761310284369,0.3572,3974.6,3973.1,3.59992951]
[1761310284370,0.3572,3974.6,3973.8,3.444]
[1761310284568,2.51614712,3974.4,3973.9,3.444]
[1761310284812,2.51614712,3974.4,3973.5,2.51665765]
[1761310285013,0.3562,3974.3,3973.6,3.444]
[1761310285310,1.05065404,3974.3,3973.6,5.96060125]
[1761310285469,1.05065404,3974.3,3973.8,2.51646149]
[1761310285668,0.3562,3974.2,3973.6,3.444]
[1761310285995,0.3562,3974.2,3973.8,2.51642878]
[1761310286163,0.001,3974.6,3973.6,3.444]
[1761310286369,0.3562,3974.4,3973.7,2.51654629]
[1761310286568,0.3562,3974.4,3973.6,5.96058952]
[1761310286802,0.79913174,3974.4,3972.7,0.66722825]
[1761310287005,0.3562,3974.4,3972.8,5.96011639]
[1761310287207,0.001,3974.6,3972.8,5.96011639]
[1761310287208,0.3562,3974.3,3972.8,6.40281639]
[1761310287401,0.3562,3974.3,3973.9,2.51640739]
[1761310287707,0.3562,3974.3,3974.0,3.443]
[1761310289482,0.3562,3974.3,3974.1,3.442]
[1761310289810,0.3562,3974.3,3973.9,3.442]
[1761310290307,0.3562,3974.3,3973.9,5.95841265]
[1761310290512,0.3562,3974.3,3973.9,3.442]
[1761310292023,0.1256,3974.0,3973.9,3.442]
[1761310292391,0.1256,3974.0,3973.9,5.95841963]
[1761310292625,0.4818,3974.0,3973.9,5.95841963]
[1761310293708,0.4818,3974.0,3973.9,3.442]
[1761310294625,0.4818,3974.0,3972.9,3.82]
[1761310294828,0.3562,3973.9,3973.6,2.51656644]
[1761310294999,0.3562,3973.9,3973.7,3.44]
[1761310295550,0.1256,3973.8,3973.7,3.44]
[1761310295726,0.1256,3973.8,3973.2,2.51684178]
[1761310295928,0.1256,3973.8,3972.7,2.51715804]
[1761310295929,0.3562,3973.7,3972.7,2.51715804]
[1761310296129,0.3562,3973.7,3972.5,0.002]
[1761310296130,0.3562,3973.7,3972.9,2.51700199]
[1761310296308,0.1256,3973.0,3972.6,2.51724311]
[1761310296489,0.3554,3973.7,3972.8,2.51707274]
[1761310296690,0.1256,3972.9,3972.8,2.51707274]
[1761310296890,0.3607,3972.9,3972.8,2.51707274]
[1761310297198,0.3607,3972.9,3972.8,5.95607274]
[1761310297407,0.3607,3972.9,3972.8,2.51707274]
[1761310297790,0.3607,3972.9,3972.8,3.439]
[1761310298025,0.3607,3972.9,3972.6,2.51719984]
[1761310298222,0.2351,3972.9,3972.8,3.439]
[1761310298526,0.3607,3972.9,3972.8,2.51711639]
[1761310298728,0.3607,3972.9,3972.5,0.002]
[1761310298729,0.4409,3972.9,3972.5,0.002]
[1761310298895,0.2351,3972.9,3972.5,0.002]
[1761310299340,0.2351,3972.9,3972.5,2.5192931]
[1761310299547,0.2351,3972.9,3972.8,2.51711639]
[1761310299932,0.2058,3973.2,3972.9,2.51703393]
[1761310301207,0.2061,3973.5,3973.0,2.51697998]
[1761310301723,0.2061,3973.5,3972.9,2.51704062]
[1761310302107,0.2061,3973.5,3973.0,2.51698358]
[1761310302312,0.2061,3973.5,3973.1,2.51691386]
[1761310303448,0.4409,3974.3,3973.2,4.16636862]
[1761310303651,0.2348,3974.3,3973.3,2.51679963]
[1761310303836,0.001,3974.6,3973.2,3.6754]
[1761310304015,0.001,3974.6,3973.6,2.51658886]
[1761310304219,0.001,3974.6,3974.3,2.51611974]
[1761310304420,0.001,3974.6,3974.5,2.51603975]
[1761310306044,0.001,3974.6,3974.4,3.437]
[1761310306214,0.001,3974.6,3974.5,2.51603975]
[1761310307155,0.001,3974.6,3974.5,5.95203975]
[1761310308650,0.3332,3974.6,3974.5,3.435]
[1761310308948,0.3332,3974.6,3974.5,5.95103975]
[1761310309142,0.3332,3974.6,3974.5,3.435]
[1761310310256,0.3332,3974.6,3974.5,5.95103975]
[1761310310756,0.1266,3974.6,3974.5,2.51603975]
[1761310310914,0.3832,3974.6,3973.7,0.25165889]
[1761310311118,0.2576,3974.6,3973.8,3.434]
[1761310311327,0.001,3975.0,3974.5,2.51603975]
[1761310311552,1e-08,3975.1,3975.0,2.51572327]
[1761310311840,1e-08,3975.1,3975.0,7.50492327]
[1761310312042,1e-08,3975.1,3975.0,9.03964894]
[1761310312575,1e-08,3975.1,3975.0,9.03864894]
[1761310314870,1e-08,3975.1,3975.0,9.03764894]
[1761310317638,1e-08,3975.1,3975.0,2.51572327]
[1761310317842,1e-08,3975.1,3975.0,5.94572327]
[1761310320557,0.81270001,3975.4,3975.3,2.51553341]
[1761310320867,0.81270001,3975.4,3975.3,5.94553341]
[1761310321575,1.21100001,3975.4,3975.3,3.429]
[1761310321770,1.21100001,3975.4,3974.4,2.5160784]
[1761310321982,0.2727,3975.3,3975.1,2.51559928]
[1761310322183,0.1256,3974.6,3974.5,2.51603975]
[1761310322478,0.1256,3974.6,3974.5,5.94403975]
[1761310322983,0.2533,3974.6,3974.3,2.51612249]
[1761310323168,0.1277,3974.6,3974.4,3.428]
[1761310323367,0.2303,3974.7,3974.1,2.51628151]
[1761310323669,0.2303,3974.7,3973.6,0.002]
[1761310323670,0.1256,3974.3,3974.2,5.94418215]
[1761310323868,0.1277,3974.3,3974.2,3.428]
[1761310324074,0.1277,3974.3,3974.2,5.94422968]
[1761310324075,0.1256,3974.3,3974.2,5.94422968]
[1761310325004,0.2533,3974.3,3974.0,2.51629338]
[1761310325288,0.1277,3974.3,3974.1,3.428]
[1761310325463,0.2303,3974.7,3973.6,2.51860962]
[1761310325464,0.1256,3973.7,3973.6,2.51860962]
[1761310325670,0.1256,3973.7,3973.6,5.94560962]
[1761310326054,0.1256,3973.7,3973.6,0.002]
[1761310326256,0.2577,3973.7,3973.6,3.429]
[1761310326454,0.2577,3973.7,3973.6,5.94560962]
[1761310326660,0.2577,3973.7,3973.6,3.429]
[1761310327162,0.2577,3973.7,3973.6,3.428]
[1761310327376,0.2577,3973.7,3973.6,5.94460962]
[1761310327976,0.2577,3973.7,3973.6,3.428]
[1761310328379,0.2577,3973.7,3973.6,3.429]
[1761310328870,0.2577,3973.7,3973.6,0.002]
[1761310329070,0.2577,3973.7,3973.6,3.428]
[1761310329879,0.2577,3973.7,3973.6,0.002]
[1761310330079,0.2577,3973.7,3973.6,5.94460962]
[1761310330400,0.2293,3974.2,3973.6,5.94460962]
[1761310330696,0.1256,3973.7,3973.6,5.94460962]
[1761310330909,0.1256,3973.7,3973.6,0.002]
[1761310331057,0.1256,3973.7,3973.6,5.94360962]
[1761310331568,0.1256,3973.7,3973.6,3.427]
[1761310332194,0.2587,3973.7,3973.6,0.002]
[1761310332360,3.05275885,3973.7,3973.6,0.002]
[1761310333286,4.60795885,3973.7,3973.6,0.002]
[1761310333998,5.11483885,3973.7,3973.6,0.002]
[1761310339878,4.60795885,3973.7,3973.6,0.002]
[1761310340306,5.11483885,3973.7,3973.6,0.002]
[1761310340710,3.02386968,3973.0,3972.9,0.002]
[1761310340911,8.00106968,3973.0,3972.9,0.002]
[1761310341217,8.25976968,3973.0,3972.9,0.002]
[1761310344314,8.25896968,3973.0,3972.9,0.002]
[1761310344520,4.83696968,3973.0,3972.9,0.002]
[1761310344819,5.91445784,3973.0,3972.9,0.002]
[1761310349890,5.78135784,3973.0,3972.9,0.002]
[1761310350123,9.20035784,3973.0,3972.9,0.002]
[1761310350347,9.33345784,3973.0,3972.9,0.002]
[1761310352164,7.77825784,3973.0,3972.9,0.002]
[1761310352525,9.33345784,3973.0,3972.9,0.002]
[1761310352851,9.20035784,3973.0,3972.9,0.002]
[1761310353214,5.78135784,3973.0,3972.9,0.002]
[1761310353810,5.78885784,3973.0,3972.9,0.002]
[1761310358517,2.06208,3973.0,3972.9,0.002]
[1761310358717,2.5163738,3974.0,3972.9,0.4579]
[1761310358966,3.415,3973.9,3973.0,0.2252]
[1761310359272,3.02386968,3973.0,3972.9,0.002]
[1761310359550,8.54814384,3973.0,3972.9,0.002]
[1761310359742,8.68124384,3973.0,3972.9,0.002]
[1761310363748,8.80684384,3973.0,3972.9,0.002]
[1761310367380,9.48439095,3973.0,3972.9,0.002]
[1761310367901,8.80684384,3973.0,3972.9,0.002]
[1761310368065,4.57913303,3972.9,3972.8,1e-08]
[1761310368255,7.5115678,3972.9,3972.8,1e-08]
[1761310368662,6.60987699,3972.9,3972.8,1e-08]
[1761310368867,7.96241222,3972.9,3972.8,1e-08]
[1761310369148,15.17401018,3972.9,3972.8,1e-08]
[1761310369788,15.17401018,3972.9,3972.1,0.002]
[1761310369789,4.8086766,3972.2,3972.1,1e-08]
[1761310369961,8.69954426,3972.2,3972.1,1e-08]
[1761310370169,8.83704426,3972.2,3972.1,1e-08]
[1761310370745,8.33016426,3972.2,3972.1,1e-08]
[1761310370987,8.83704426,3972.2,3972.1,1e-08]
[1761310371793,9.74066776,3972.2,3972.1,1e-08]
[1761310373001,8.83704426,3972.2,3972.1,1e-08]
[1761310373204,9.74066776,3972.2,3972.1,1e-08]
[1761310373783,8.83704426,3972.2,3972.1,1e-08]
[1761310374373,8.33016426,3972.2,3972.1,1e-08]
[1761310374618,2.51876479,3970.2,3969.4,0.002]
[1761310374761,10.07023992,3972.1,3968.0,0.4559]
[1761310374762,8.79323319,3969.4,3968.0,0.4559]
[1761310374959,2.51924298,3969.5,3968.3,0.2252]
[1761310374960,0.50688,3968.8,3968.3,0.2252]
[1761310375155,0.67712547,3969.4,3968.3,0.2252]
[1761310375358,0.67712547,3970.0,3969.8,0.2252]
[1761310375602,0.75650881,3970.1,3969.3,0.2252]
[1761310375890,2.51930746,3969.4,3969.3,0.2252]
[1761310376054,1.5552,3969.3,3968.3,0.2252]
[1761310376258,2.51984376,3968.5,3968.4,0.4559]
[1761310378391,2.51984376,3968.5,3968.3,0.2252]
[1761310378580,2.51975874,3968.7,3967.3,0.002]
[1761310378581,2.52028832,3967.8,3967.7,0.2218]
[1761310378995,4.07548832,3967.8,3967.7,0.2218]
[1761310379183,2.52047889,3967.5,3967.4,0.2218]
[1761310379585,4.07574242,3967.4,3967.3,0.002]
[1761310379887,4.70902242,3967.4,3967.3,0.002]
[1761310380095,5.77267255,3967.4,3967.3,0.002]
[1761310380415,8.11602242,3967.4,3967.3,0.002]
[1761310382241,8.25172242,3967.4,3967.3,0.002]
[1761310384008,8.11602242,3967.4,3967.3,0.002]
[1761310384237,2.52054242,3967.4,3967.3,0.4436]
[1761310384536,2.52044936,3967.6,3967.3,0.4436]
[1761310384702,2.52051141,3967.5,3967.3,0.4436]
[1761310385110,0.2271,3968.6,3967.3,0.4436]
[1761310385111,0.67712547,3968.8,3967.3,0.4436]
[1761310385333,3.57516369,3968.7,3967.3,0.4436]
[1761310385622,1.5552,3968.0,3967.3,0.4436]
[1761310385857,2.52054242,3967.4,3967.3,0.4436]
[1761310386202,2.52054242,3967.4,3967.3,0.002]
[1761310386411,2.52054242,3967.4,3967.3,0.4436]
[1761310386632,4.07574242,3967.4,3967.3,0.4436]
[1761310387711,1.5552,3967.4,3967.3,0.4436]
[1761310387916,3.02686267,3968.3,3967.3,0.4436]
[1761310387917,2.52025836,3967.9,3967.3,0.4436]
[1761310388116,1.5552,3967.8,3967.3,0.4436]
[1761310388325,2.52029382,3967.8,3967.3,0.4436]
[1761310388537,3.57416369,3968.7,3967.3,0.76197296]
[1761310388838,0.89879936,3969.6,3968.6,0.2194]
[1761310389141,4.07491678,3968.7,3968.6,0.661]
[1761310389502,4.07491678,3968.7,3968.6,0.2194]
[1761310389908,2.52015715,3968.1,3967.9,0.4416]
[1761310390116,2.52016129,3968.0,3967.9,0.4416]
[1761310390517,1.5552,3967.9,3967.3,0.002]
[1761310390734,2.52054242,3967.4,3967.3,0.002]
[1761310391118,2.52054242,3967.4,3967.3,0.4436]
[1761310391322,4.07574242,3967.4,3967.3,0.002]
[1761310391840,5.24224277,3967.4,3967.3,0.002]
[1761310392447,5.24144277,3967.4,3967.3,0.002]
[1761310393022,4.07494242,3967.4,3967.3,0.002]
[1761310393820,8.12582242,3967.4,3967.3,0.002]
[1761310394148,8.66206911,3967.4,3967.3,0.002]
[1761310394342,8.64946911,3967.4,3967.3,0.002]
[1761310394839,8.78846911,3967.4,3967.3,0.002]
[1761310395051,10.00879206,3967.4,3967.3,0.002]
[1761310396319,10.90191723,3967.4,3967.3,0.002]
[1761310396520,10.00879206,3967.4,3967.3,0.002]
[1761310396730,3.02793077,3966.6,3966.5,0.002]
[1761310396913,9.07826756,3966.6,3966.5,0.002]
[1761310397121,9.20466756,3966.6,3966.5,0.002]
[1761310397326,9.87575784,3966.6,3966.5,0.002]
[1761310397626,9.20466756,3966.6,3966.5,0.002]
[1761310399056,4.73889746,3966.6,3966.5,0.4436]
[1761310399433,4.73889746,3966.6,3966.5,0.002]
[1761310400234,4.73889746,3966.6,3966.5,0.4436]
[1761310400763,0.66264669,3966.6,3966.5,0.4436]
[1761310401061,0.53624669,3966.7,3966.5,0.4436]
[1761310401268,0.53624669,3966.8,3966.5,0.4436]
[1761310401734,2.52098721,3966.7,3966.5,0.4436]
[1761310401934,0.67109028,3967.0,3966.5,0.4436]
[1761310401935,0.53624669,3966.6,3966.5,0.4436]
[1761310402183,0.53624669,3966.8,3966.5,0.76202891]
[1761310402346,0.53894984,3967.0,3966.6,2.54625724]
[1761310402677,0.53894984,3967.2,3966.5,0.002]
[1761310402880,4.07625077,3966.6,3966.5,0.002]
[1761310403189,4.61520061,3966.6,3966.5,0.002]
[1761310403350,5.27492281,3966.6,3966.5,0.002]
[1761310403544,5.78180281,3966.6,3966.5,0.002]
[1761310403745,5.92080281,3966.6,3966.5,0.002]
[1761310404272,2.52155089,3965.9,3965.6,0.2194]
[1761310404571,2.52162291,3965.7,3965.6,0.661]
[1761310404862,3.06057275,3965.7,3965.6,0.2194]
[1761310405165,3.06057275,3965.7,3965.6,0.661]
[1761310405358,3.73640933,3965.7,3965.6,0.661]
[1761310406275,1.21478642,3965.7,3965.6,0.661]
[1761310408270,0.53894984,3965.7,3965.6,0.661]
[1761310408439,1.21580391,3965.7,3965.6,0.661]
[1761310408638,0.53894984,3965.7,3965.6,0.661]
[1761310408842,0.53894984,3965.7,3965.6,3.75314355]
[1761310410163,0.53894984,3966.1,3965.7,2.52162166]
[1761310410468,0.53894984,3966.0,3965.9,2.52149575]
[1761310410856,0.66534984,3966.0,3965.9,2.95599575]
[1761310411657,0.66534984,3966.0,3965.9,6.35599575]
[1761310411982,0.66534984,3966.0,3965.9,7.32274332]
[1761310412170,0.1264,3966.0,3965.9,7.32274332]
[1761310412562,0.1264,3966.0,3965.9,1.40124757]
[1761310412763,0.66534984,3966.0,3965.9,0.4345]
[1761310413176,0.66534984,3966.0,3965.9,2.95599575]
[1761310413574,0.1264,3966.0,3965.9,2.95599575]
[1761310414096,0.53894984,3966.2,3966.1,2.52136859]
[1761310414403,0.66534984,3966.2,3966.1,2.54658227]
[1761310414569,0.1264,3966.2,3966.1,3.09682888]
[1761310414890,0.1264,3966.2,3966.1,3.7257152]
[1761310415386,0.53894984,3966.6,3966.5,2.52111433]
[1761310415586,0.53894984,3966.9,3966.8,2.52092366]
[1761310415777,0.66534984,3966.9,3966.8,2.52092366]
[1761310415968,0.66534984,3966.9,3966.8,2.95542366]
[1761310416292,0.66454984,3966.9,3966.8,3.84286625]
[1761310417889,0.1264,3966.9,3966.8,3.84286625]
[1761310419292,0.67685407,3967.8,3966.8,3.86807548]
[1761310419458,0.67685407,3967.8,3967.7,0.2196]
[1761310419663,0.67685407,3967.8,3967.7,3.6166]
[1761310419865,0.80325407,3967.8,3967.7,3.6166]
[1761310420064,0.80325407,3967.8,3967.7,4.0511]
[1761310420272,0.80377675,3967.8,3967.7,4.0511]
[1761310420779,0.80377675,3967.8,3967.7,3.6166]
[1761310421084,2.35897675,3967.8,3967.7,0.2196]
[1761310421290,3.32406507,3967.8,3967.4,0.2196]
[1761310421462,3.32406507,3967.8,3966.1,0.76984661]
[1761310421463,0.1264,3967.6,3967.0,2.52074472]
[1761310421665,2.52035253,3967.7,3967.1,3.396]
[1761310422099,0.1264,3967.2,3967.1,6.13631665]
[1761310422304,0.1264,3967.2,3967.1,6.57081665]
[1761310422986,0.1264,3967.2,3967.1,3.6156]
[1761310423189,0.1264,3967.2,3967.1,3.6146]
[1761310423506,0.1264,3967.2,3967.1,3.395]
[1761310423878,0.1264,3967.2,3967.1,3.6146]
[1761310424203,0.1264,3967.2,3967.1,4.0491]
[1761310424803,0.1264,3967.2,3967.1,6.56983302]
[1761310425005,0.1264,3967.2,3967.1,7.47910071]
[1761310425169,0.1264,3967.2,3967.1,4.95836769]
[1761310425365,0.1264,3967.2,3967.1,4.0491]
[1761310425569,0.1264,3967.2,3967.1,3.6146]
[1761310425764,0.1264,3967.2,3967.1,6.56983302]
[1761310426702,0.1264,3967.2,3967.1,3.394]
[1761310426918,0.1264,3967.2,3966.9,2.5208499]
[1761310427084,2.52049713,3967.5,3967.1,3.393]
[1761310427483,0.1264,3967.2,3967.1,3.393]
[1761310427684,0.1264,3967.2,3967.0,2.95528154]
[1761310427889,0.1264,3967.2,3967.1,3.6126]
[1761310428088,2.52042777,3967.6,3967.1,4.0471]
[1761310428290,0.1264,3967.2,3967.1,4.0471]
[1761310429076,0.1264,3967.2,3967.1,6.56783302]
[1761310429277,0.1264,3967.2,3967.1,7.22481632]
[1761310432410,0.001,3967.8,3967.3,2.52058008]
[1761310432613,0.001,3967.8,3967.4,3.391]
[1761310432921,2.52041152,3967.7,3967.5,3.391]
[1761310433420,2.52041536,3967.6,3967.5,3.391]
[1761310434320,2.65191536,3967.6,3967.5,3.391]
[1761310434482,2.52041536,3967.6,3967.5,3.391]
[1761310434687,2.52041536,3967.6,3966.8,0.002]
[1761310434688,0.65821105,3967.6,3966.8,0.002]
[1761310434889,0.1315,3967.6,3966.9,3.391]
[1761310435218,2.52061662,3967.3,3966.9,3.391]
[1761310436188,2.52042471,3967.6,3966.9,3.8255]
[1761310436189,2.52054947,3967.4,3966.9,3.8255]
[1761310436391,0.54199693,3967.3,3966.9,3.391]
[1761310436616,1.5552,3967.7,3967.0,0.435]
[1761310436892,0.54199693,3967.6,3967.0,0.435]
[1761310437118,1.5552,3967.4,3967.1,0.216]
[1761310437334,0.54219829,3967.3,3967.1,0.651]
[1761310437503,2.09739829,3967.5,3967.1,0.651]
[1761310437703,3.06274835,3967.4,3967.1,0.216]
[1761310437930,0.54219829,3967.3,3967.1,0.216]
[1761310438252,0.54219829,3967.4,3967.1,0.216]
[1761310438910,3.06279407,3967.4,3966.9,3.826]
[1761310439112,0.54219829,3967.3,3967.0,3.388]
[1761310439435,2.52054242,3967.4,3967.0,3.388]
[1761310439633,0.54219829,3967.3,3967.0,3.388]
[1761310440029,0.54219829,3967.3,3967.0,3.8428]
[1761310440541,0.54139829,3967.4,3967.1,0.2222]
[1761310440710,0.001,3967.8,3967.1,0.2222]
[1761310440711,0.001,3967.8,3967.1,0.677]
[1761310440904,0.001,3967.8,3967.4,2.52054104]
[1761310441106,0.001,3967.8,3967.5,3.388]
[1761310441308,0.001,3967.8,3967.5,6.36326815]
[1761310441533,0.001,3967.8,3967.6,0.4548]
[1761310442131,0.001,3967.8,3967.7,3.388]
[1761310442569,0.001,3967.8,3966.9,0.002]
[1761310442570,1.03517675,3967.8,3966.9,0.002]
[1761310442699,0.001,3967.4,3967.2,3.387]
[1761310443102,0.001,3967.4,3967.3,0.4548]
[1761310443738,0.001,3967.4,3967.3,0.48000605]
[1761310443912,0.001,3967.4,3967.3,0.4548]
[1761310444607,0.001,3967.4,3967.2,3.387]
[1761310445644,0.3547,3967.3,3966.9,0.002]
[1761310445804,3.19981787,3967.0,3966.9,0.002]
[1761310446005,4.07599657,3967.0,3966.9,0.002]
[1761310446203,4.21739657,3967.0,3966.9,0.002]
[1761310446405,5.04791269,3967.0,3966.9,0.002]
[1761310447714,6.39958585,3967.0,3966.9,0.002]
[1761310448310,5.04791269,3967.0,3966.9,0.002]
[1761310449239,4.07599657,3967.0,3966.9,0.002]
[1761310449825,0.67846349,3967.0,3966.9,0.002]
[1761310450027,2.5207201,3967.2,3966.9,0.002]
[1761310450229,2.52066948,3967.2,3966.9,0.4568]
[1761310450427,2.52066948,3967.2,3966.9,0.002]
[1761310450842,2.52073302,3967.1,3966.9,0.4568]
[1761310451047,2.52069183,3967.2,3966.9,0.4568]
[1761310451221,2.52079657,3967.0,3966.9,0.002]
[1761310451646,2.52074537,3967.1,3966.9,0.002]
[1761310452446,0.54270517,3967.0,3966.9,0.002]
[1761310452762,0.66910517,3967.0,3966.9,3.386]
[1761310453129,0.66910517,3967.0,3966.9,3.8408]
[1761310453353,0.1264,3967.0,3966.9,3.8408]
[1761310454452,0.1264,3967.0,3966.9,3.386]
[1761310454661,0.66910517,3967.0,3966.9,3.386]
[1761310454855,0.1264,3967.0,3966.9,3.386]
[1761310455036,0.66910517,3967.0,3966.9,0.002]
[1761310455234,0.66910517,3967.0,3966.9,3.385]
[1761310455432,0.1264,3967.0,3966.9,3.385]
[1761310455735,0.1264,3967.0,3966.9,6.74484011]
[1761310457350,0.1264,3967.0,3966.9,4.22398]
[1761310457652,0.1264,3967.0,3966.9,4.2491886]
[1761310457823,0.1264,3967.0,3966.9,6.77004871]
[1761310458020,0.1264,3967.0,3966.9,6.74484011]
[1761310458457,0.001,3967.4,3966.9,6.74484011]
[1761310458755,0.001,3967.4,3967.3,2.74280595]
[1761310458963,0.001,3967.4,3967.3,6.275412]
[1761310459258,0.001,3967.4,3967.3,6.70500595]
[1761310460351,0.001,3967.4,3967.3,7.08548595]
[1761310461675,0.001,3967.4,3967.3,3.8348]
[1761310461829,0.001,3967.4,3967.3,6.35540595]
[1761310462886,0.001,3967.4,3967.3,3.38]
[1761310463087,0.001,3967.4,3967.3,5.90060595]
[1761310463253,0.001,3967.4,3967.3,3.8348]
[1761310463460,0.001,3967.4,3967.3,6.35540595]
[1761310464167,0.0002,3967.4,3967.3,6.35540595]
[1761310465376,0.0002,3967.4,3967.3,7.26523978]
[1761310466347,0.0002,3967.4,3967.3,3.88523978]
[1761310466663,0.0002,3967.4,3967.3,6.35340595]
[1761310467990,0.0002,3967.4,3967.3,5.89860595]
[1761310468155,0.0002,3967.4,3967.3,3.377]
[1761310469028,0.0002,3967.4,3967.3,5.89760595]
[1761310469169,0.0002,3967.4,3967.3,6.35240595]
[1761310470112,0.0002,3967.4,3967.3,5.89760595]
[1761310470610,0.1266,3967.4,3967.3,5.89760595]
[1761310471774,0.1266,3967.4,3967.3,2.52060595]
[1761310471980,0.1266,3967.4,3967.3,3.376]
[1761310472277,0.1266,3967.4,3967.2,2.52065332]
[1761310472477,0.0002,3967.4,3967.3,3.375]
[1761310472681,0.0002,3967.4,3967.0,2.52074322]
[1761310472884,2.52066948,3967.2,3966.9,0.002]
[1761310473105,0.27803695,3967.2,3967.0,3.375]
[1761310473306,0.2595,3967.1,3967.0,3.375]
[1761310473508,2.78023302,3967.1,3967.0,3.375]
[1761310474007,0.2595,3967.1,3967.0,3.375]
[1761310474411,2.78023302,3967.1,3967.0,3.374]
[1761310475926,4.07599657,3967.0,3966.9,0.002]
[1761310476109,4.61787794,3967.0,3966.9,3.376]
[1761310476312,4.75097794,3967.0,3966.9,3.376]
[1761310477509,2.23018137,3967.0,3966.9,3.376]
[1761310477924,4.75097794,3967.0,3966.9,3.376]
[1761310479316,4.75097794,3967.0,3966.9,0.002]
[1761310479517,4.75097794,3967.0,3966.9,3.375]
[1761310479887,2.09708137,3967.0,3966.9,3.375]
[1761310480440,2.09708137,3967.0,3966.9,3.374]
[1761310482332,0.54188137,3967.0,3966.9,3.8219]
[1761310482487,0.67866349,3967.4,3966.9,3.374]
[1761310482488,3.06289014,3967.3,3966.9,3.374]
[1761310482805,0.54225882,3967.2,3967.0,3.371]
[1761310483005,3.06293984,3967.2,3967.0,3.371]
[1761310483323,0.54225882,3967.1,3967.0,3.371]
[1761310484036,0.54225882,3967.2,3967.0,3.371]
[1761310484441,0.54225882,3967.2,3967.1,0.2339]
[1761310484640,0.0002,3967.4,3967.1,4.0528]
[1761310484844,0.54244825,3967.4,3967.2,0.4479]
[1761310485009,0.0002,3967.4,3967.2,0.4479]
[1761310485704,0.0002,3967.4,3967.3,0.02520605]
[1761310485908,0.0002,3967.4,3967.3,2.92840656]
[1761310486210,0.0002,3967.4,3967.3,3.37630656]
[1761310488228,0.0004,3967.7,3967.6,2.52041536]
[1761310488434,0.0004,3967.7,3967.6,6.36251951]
[1761310488630,0.0004,3967.7,3967.6,6.33731536]
[1761310488816,0.0004,3967.7,3967.6,7.51593699]
[1761310491155,0.0004,3967.7,3967.6,1.62652163]
[1761310491460,0.0004,3967.7,3967.6,3.367]
[1761310491461,0.1268,3967.7,3967.6,3.367]
[1761310493757,0.2628,3967.7,3966.8,0.002]
[1761310493929,2.65676916,3967.7,3967.0,5.88673993]
[1761310494131,0.1264,3967.2,3967.1,2.52073302]
[1761310494868,0.1264,3967.2,3967.1,3.87055916]
[1761310495044,0.1264,3967.2,3967.1,3.366]
[1761310495245,0.1264,3967.2,3967.0,2.52076907]
[1761310495246,0.1264,3967.2,3966.9,0.002]
[1761310495445,0.1264,3967.2,3967.0,3.366]
[1761310495650,2.52042034,3967.6,3967.0,3.366]
[1761310495948,0.136,3967.5,3967.2,0.002]
[1761310496144,0.1264,3967.3,3967.2,0.002]
[1761310496334,0.2624,3967.3,3967.2,3.367]
[1761310496867,2.78300595,3967.3,3967.2,0.002]
[1761310497156,5.15866683,3967.3,3967.2,0.002]
[1761310497364,5.83713032,3967.3,3967.2,0.002]
[1761310498453,5.15866683,3967.3,3967.2,0.002]
[1761310500354,4.74437763,3967.3,3967.2,0.002]
[1761310500560,0.66857168,3967.3,3967.2,0.002]
[1761310500757,0.1264,3967.3,3967.2,0.002]
[1761310501656,0.1264,3967.3,3967.2,6.32766948]
[1761310502053,0.0004,3967.7,3967.6,2.52041536]
[1761310502285,0.0004,3967.7,3967.6,2.7724569]
[1761310502553,0.0004,3967.7,3967.6,3.2134569]
[1761310502962,0.0004,3967.7,3967.6,6.5764569]
[1761310504173,0.0004,3967.7,3967.6,3.2134569]
[1761310504483,0.0004,3967.7,3967.6,6.5754569]
[1761310504850,0.0004,3967.7,3967.6,3.2134569]
[1761310505346,0.0004,3967.7,3967.6,6.5754569]
[1761310506406,0.0004,3967.7,3967.6,0.69304154]
[1761310506694,0.0004,3967.7,3967.6,5.88141536]
[1761310507298,0.0004,3967.7,3967.4,2.52051281]
[1761310507504,0.0004,3967.7,3967.2,0.002]
[1761310507787,0.0004,3967.7,3967.5,5.88147639]
[1761310508167,0.0004,3967.7,3967.2,0.002]
[1761310508382,0.0004,3967.7,3967.3,2.255]
[1761310509697,0.1257,3967.6,3967.2,0.002]
[1761310509871,2.52060595,3967.3,3967.2,0.002]
[1761310510057,3.06259343,3967.3,3967.2,0.002]
[1761310510295,3.18829343,3967.3,3967.2,0.002]
[1761310510461,3.82701701,3967.3,3967.2,0.002]
[1761310510859,5.38221701,3967.3,3967.2,0.002]
[1761310511058,5.88909701,3967.3,3967.2,0.002]
[1761310511263,6.5675605,3967.3,3967.2,0.002]
[1761310511507,5.38221701,3967.3,3967.2,0.002]
[1761310511690,6.05985037,3967.3,3967.2,0.002]
[1761310512208,6.18545037,3967.3,3967.2,0.002]
[1761310512565,6.69233037,3967.3,3967.2,0.002]
[1761310512765,6.01469701,3967.3,3967.2,0.002]
[1761310513161,5.50781701,3967.3,3967.2,0.002]